[Event "IIFL Wealth  4th Mumbai Junior U-13"]
[Site "Mumbai"]
[Date "2019.01.01"]
[Round "3"]
[White "Daakshin Arun"]
[Black "Devesh Anand Naik"]
[Result "1/2-1/2"]
[ECO "E91"]
[WhiteElo "1400"]
[BlackElo "1763"]
[Annotator "NA RC"]
[PlyCount "139"]
[EventDate "2018.12.30"]
[EventType "swiss"]
[EventCountry "IND"]
[SourceTitle "playchess.com"]
[Source "ChessBase"]
[SourceQuality "1"]
[TimeControl "40/5400+30:1800+30"]

1. d4 {[%emt 0:00:00]} Nf6 {[%emt 0:00:00]} 2. c4 {[%emt 0:00:00]} g6 {[%emt 0:00:00]} 3. Nc3 {[%emt 0:00:00]} Bg7 {[%emt 0:00:00]} 4. e4 {[%emt 0:00:00]} d6 {[%emt 0:00:00]} 5. Nf3 {[%emt 0:00:00]} O-O {[%emt 0:00:00]} 6. Be2 {[%emt 0:00:01]} Nbd7 {[%emt 0:00:37]} 7. O-O {[%emt 0:00:16]} e5 {[%emt 0:00:10]} 8. d5 {[%emt 0:00:11]} Nc5 {[%emt 0:00:07]} 9. Qc2 {[%emt 0:00:07]} a5 {[%emt 0:00:09]} 10. Be3 {[%emt 0:00:05]} Nh5 {[%emt 0:01:00]} 11. Bxc5 {[%emt 0:00:11]} dxc5 {[%emt 0:00:07]} 12. Rad1 {[%emt 0:00:25]} Nf4 {[%emt 0:00:25]} 13. Rfe1 {[%emt 0:01:09]} Bg4 {[%emt 0:01:32]} 14. h3 {[%emt 0:00:46]} Bxf3 {[%emt 0:01:21]} 15. Bxf3 {[%emt 0:00:08]} Qf6 {[%emt 0:01:37]} 16. Kh2 {[%emt 0:01:20]} g5 {[%emt 0:06:58]} 17. Bg4 {[%emt 0:07:07]} h5 {[%emt 0:09:57]} 18. Bf5 {[%emt 0:00:15]} g4 {[%emt 0:01:12]} 19. Ne2 {[%emt 0:02:08]} Rfe8 {[%emt 0:13:51]} 20. Rh1 {[%emt 0:05:20]} Qg5 {[%emt 0:15:33]} 21. Qd2 {[%emt 0:08:20]} Bh6 {[%emt 0:13:50]} 22. Nxf4 {[%emt 0:00:09]} exf4 {[%emt 0:00:11]} 23. Kg1 {[%emt 0:02:14]} g3 {[%emt 0:04:28]} 24. f3 {[%emt 0:00:20]} h4 {[%emt 0:01:32]} 25. a4 {[%emt 0:02:10]} Bg7 {[%emt 0:01:17]} 26. b3 {[%emt 0:02:47]} Bd4+ {[%emt 0:07:13]} 27. Kf1 {[%emt 0:00:09]} Re5 {[%emt 0:00:40]} 28. Qc2 {[%emt 0:01:02]} Rae8 {[%emt 0:01:21]} 29. Bg4 {[%emt 0:01:06]} b6 {[%emt 0:01:56]} 30. Bd7 {[%emt 0:00:59]} R8e7 {[%emt 0:01:33]} 31. Bg4 {[%emt 0:00:11]} Qg7 {[%emt 0:04:34]} 32. Qc1 {[%emt 0:06:27]} Qf6 {[%emt 0:01:13]} 33. Qb1 {[%emt 0:01:18]} Qd6 {[%emt 0:01:26]} 34. Qc2 {[%emt 0:03:35]} Re8 {[%emt 0:01:28]} 35. Qd2 {[%emt 0:02:19]} R5e7 {[%emt 0:02:41]} 36. Bf5 {[%emt 0:01:09]} Qe5 {[%emt 0:01:25]} 37. Qc2 {[%emt 0:00:24]} Kg7 {[%emt 0:01:52]} 38. Bg4 {[%emt 0:00:43]} Rg8 {[%emt 0:01:09]} 39. Bf5 {[%emt 0:00:19]} Kf8 {[%emt 0:00:15]} 40. Bg4 {[%emt 0:00:00]} Rg5 {[%emt 0:00:00]} 41. Bc8 {[%emt 0:04:22]} Re8 {[%emt 0:02:13]} 42. Bd7 {[%emt 0:00:12]} Rd8 {[%emt 0:00:35]} 43. Bg4 {[%emt 0:04:00]} Ke7 {[%emt 0:00:24]} 44. Qd3 {[%emt 0:05:40]} Kd6 {[%emt 0:00:46]} 45. Re1 {[%emt 0:04:59]} Bc3 {[%emt 0:00:52]} 46. Re2 {[%emt 0:00:18]} Bb4 {[%emt 0:00:31]} 47. Qd1 {[%emt 0:00:20]} Re8 {[%emt 0:00:44]} 48. Bf5 {[%emt 0:00:39]} Qc3 {[%emt 0:00:48]} 49. Bg4 {[%emt 0:03:43]} f5 {[%emt 0:01:10]} 50. Bxf5 {[%emt 0:02:08]} Rxf5 {[%emt 0:00:19]} 51. Qb1 {[%emt 0:02:27]} Rfe5 {[%emt 0:02:10]} 52. Qd1 {[%emt 0:00:11]} Qd4 {[%emt 0:02:25]} 53. Qc1 {[%emt 0:00:28]} Qd3 {[%emt 0:00:53]} 54. Qc2 {[%emt 0:00:53]} Qxc2 {[%emt 0:02:21]} 55. Rxc2 {[%emt 0:00:05]} c6 {[%emt 0:00:21]} 56. Ke2 {[%emt 0:00:11]} cxd5 {[%emt 0:00:08]} 57. Rd1 {[%emt 0:00:15]} d4 {[%emt 0:06:03]} 58. Kd3 {[%emt 0:00:04]} R5e7 {[%emt 0:00:12]} 59. Ra2 {[%emt 0:00:32]} Bc3 {[%emt 0:00:29]} 60. Ra3 {[%emt 0:00:19]} Rb8 {[%emt 0:01:50]} 61. Ra2 {[%emt 0:00:11]} Rc7 {[%emt 0:01:18]} 62. Ra3 {[%emt 0:00:31]} b5 {[%emt 0:01:56]} 63. axb5 {[%emt 0:00:53]} Ra7 {[%emt 0:00:38]} 64. Ra4 {[%emt 0:00:06]} Kc7 {[%emt 0:02:59]} 65. Rf1 {[%emt 0:00:12]} Kb6 {[%emt 0:01:55]} 66. Rd1 {[%emt 0:00:07]} Rd7 {[%emt 0:01:48]} 67. Rf1 {[%emt 0:00:07]} Re8 {[%emt 0:00:08]} 68. Rd1 {[%emt 0:00:09]} Rde7 {[%emt 0:01:09]} 69. Rf1 {[%emt 0:00:08]} Rf8 {[%emt 0:00:39]} 70. Rd1 {[%emt 0:00:08]} 1/2-1/2

[Event "IIFL Wealth  4th Mumbai Junior U-13"]
[Site "Mumbai"]
[Date "2019.01.01"]
[Round "3"]
[White "Yash Joshi"]
[Black "Bhagyashree G Patil"]
[Result "1-0"]
[ECO "B01"]
[WhiteElo "1389"]
[BlackElo "1215"]
[Annotator "NA RC"]
[PlyCount "141"]
[EventDate "2018.12.30"]
[EventType "swiss"]
[EventCountry "IND"]
[SourceTitle "playchess.com"]
[Source "ChessBase"]
[SourceQuality "1"]
[TimeControl "40/5400+30:1800+30"]

1. e4 {[%emt 0:00:00]} d5 {[%emt 0:00:00]} 2. exd5 {[%emt 0:00:00]} Nf6 {[%emt 0:00:00]} 3. d4 {[%emt 0:01:28]} Nxd5 {[%emt 0:00:00]} 4. Nf3 {[%emt 0:01:49]} Bf5 {[%emt 0:00:17]} 5. a3 {[%emt 0:00:42]} e6 {[%emt 0:00:56]} 6. Bd3 {[%emt 0:01:22]} Bxd3 {[%emt 0:00:12]} 7. Qxd3 {[%emt 0:00:06]} c6 {[%emt 0:00:09]} 8. Nc3 {[%emt 0:02:09]} Nxc3 {[%emt 0:00:16]} 9. Qxc3 {[%emt 0:01:05]} Be7 {[%emt 0:01:52]} 10. O-O {[%emt 0:01:36]} O-O {[%emt 0:00:33]} 11. Bf4 {[%emt 0:03:22]} Nd7 {[%emt 0:07:07]} 12. Rad1 {[%emt 0:02:38]} Nb6 {[%emt 0:00:44]} 13. Qb3 {[%emt 0:06:21]} Qc8 {[%emt 0:11:02]} 14. Rfe1 {[%emt 0:04:09]} Re8 {[%emt 0:02:38]} 15. Ne5 {[%emt 0:11:13]} Bf6 {[%emt 0:14:29]} 16. Ng4 {[%emt 0:02:08]} Be7 {[%emt 0:01:22]} 17. Qg3 {[%emt 0:08:02]} Kh8 {[%emt 0:20:22]} 18. Ne5 {[%emt 0:22:48]} Rf8 {[%emt 0:00:50]} 19. Rd3 {[%emt 0:02:23]} Nd5 {[%emt 0:02:20]} 20. Rf3 {[%emt 0:02:27]} Nxf4 {[%emt 0:04:23]} 21. Qxf4 {[%emt 0:00:13]} f6 {[%emt 0:04:05]} 22. Nd3 {[%emt 0:01:14]} Re8 {[%emt 0:00:41]} 23. Rfe3 {[%emt 0:02:05]} Bf8 {[%emt 0:00:43]} 24. Qg4 {[%emt 0:00:51]} f5 {[%emt 0:00:53]} 25. Qh5 {[%emt 0:00:40]} Qd7 {[%emt 0:00:56]} 26. c3 {[%emt 0:01:24]} Bd6 {[%emt 0:04:27]} 27. Qe2 {[%emt 0:02:34]} Qc7 {[%emt 0:08:05]} 28. g3 {[%emt 0:02:18]} f4 {[%emt 0:00:42]} 29. Rxe6 {[%emt 0:00:51]} Rf8 {[%emt 0:00:27]} 30. gxf4 {[%emt 0:01:35]} Bxf4 {[%emt 0:00:15]} 31. Nxf4 {[%emt 0:00:58]} Qxf4 {[%emt 0:00:16]} 32. Re4 {[%emt 0:00:16]} Qd6 {[%emt 0:00:49]} 33. Re7 {[%emt 0:01:46]} b6 {[%emt 0:01:27]} 34. Qg4 {[%emt 0:00:45]} Qf6 {[%emt 0:00:45]} 35. Qg3 {[%emt 0:00:50]} Rg8 {[%emt 0:00:38]} 36. R7e6 {[%emt 0:00:52]} Qf5 {[%emt 0:00:25]} 37. Qe5 {[%emt 0:01:41]} Qg4+ {[%emt 0:00:16]} 38. Kf1 {[%emt 0:00:25]} Raf8 {[%emt 0:00:50]} 39. Qe4 {[%emt 0:01:27]} Rf4 {[%emt 0:04:04]} 40. Qxc6 {[%emt 0:00:00]} Qh4 {[%emt 0:00:00]} 41. Qg2 {[%emt 0:02:52]} Rgf8 {[%emt 0:02:33]} 42. R1e2 {[%emt 0:01:37]} Qh5 {[%emt 0:02:35]} 43. R6e5 {[%emt 0:01:35]} Qh6 {[%emt 0:01:33]} 44. Re8 {[%emt 0:02:51]} R4f6 {[%emt 0:02:16]} 45. Rxf8+ {[%emt 0:00:44]} Rxf8 {[%emt 0:00:05]} 46. Re1 {[%emt 0:02:50]} Qd2 {[%emt 0:00:14]} 47. f3 {[%emt 0:01:21]} Qd3+ {[%emt 0:00:26]} 48. Kf2 {[%emt 0:00:22]} h6 {[%emt 0:01:12]} 49. Re3 {[%emt 0:00:51]} Qd2+ {[%emt 0:00:09]} 50. Re2 {[%emt 0:00:10]} Qd3 {[%emt 0:00:10]} 51. Qg4 {[%emt 0:00:43]} Qc4 {[%emt 0:03:13]} 52. Qh5 {[%emt 0:02:43]} Qc6 {[%emt 0:00:24]} 53. Re3 {[%emt 0:01:04]} a5 {[%emt 0:02:22]} 54. Qe5 {[%emt 0:02:21]} Qg6 {[%emt 0:01:41]} 55. d5 {[%emt 0:01:33]} Rd8 {[%emt 0:00:36]} 56. Re4 {[%emt 0:01:55]} Kh7 {[%emt 0:01:10]} 57. Rd4 {[%emt 0:00:54]} Re8 {[%emt 0:00:50]} 58. Qf4 {[%emt 0:01:17]} Qc2+ {[%emt 0:00:23]} 59. Qd2 {[%emt 0:01:24]} Qb3 {[%emt 0:00:26]} 60. d6 {[%emt 0:00:38]} Qf7 {[%emt 0:01:06]} 61. d7 {[%emt 0:00:57]} Rd8 {[%emt 0:00:21]} 62. Qd3+ {[%emt 0:00:37]} Kh8 {[%emt 0:00:06]} 63. Qb5 {[%emt 0:00:32]} Qe6 {[%emt 0:00:21]} 64. c4 {[%emt 0:02:00]} Qh3 {[%emt 0:00:45]} 65. Qe5 {[%emt 0:01:15]} Rxd7 66. Qe8+ {[%emt 0:00:14]} Kh7 {[%emt 0:00:46]} 67. Qxd7 {[%emt 0:00:40]} Qxh2+ {[%emt 0:00:06]} 68. Ke3 {[%emt 0:00:14]} Qxb2 {[%emt 0:00:21]} 69. Qf5+ {[%emt 0:00:08]} g6 {[%emt 0:00:36]} 70. Qf7+ {[%emt 0:00:06]} Kh8 {[%emt 0:00:04]} 71. Rd8# {[%emt 0:00:05]} 1-0

[Event "IIFL Wealth  4th Mumbai Junior U-13"]
[Site "Mumbai"]
[Date "2019.01.01"]
[Round "3"]
[White "Renganayaki V"]
[Black "Barde Om"]
[Result "1/2-1/2"]
[ECO "D38"]
[WhiteElo "1376"]
[BlackElo "1801"]
[Annotator "NA RC"]
[PlyCount "117"]
[EventDate "2018.12.30"]
[EventType "swiss"]
[EventCountry "IND"]
[SourceTitle "playchess.com"]
[Source "ChessBase"]
[SourceQuality "1"]
[TimeControl "40/5400+30:1800+30"]

1. d4 {[%emt 0:00:00]} Nf6 {[%emt 0:02:32]} 2. c4 {[%emt 0:00:00]} e6 {[%emt 0:00:04]} 3. Nf3 {[%emt 0:00:00]} d5 {[%emt 0:00:09]} 4. Nc3 {[%emt 0:00:00]} Bb4 {[%emt 0:01:31]} 5. cxd5 {[%emt 0:00:01]} exd5 {[%emt 0:00:10]} 6. Bg5 {[%emt 0:01:12]} Be7 {[%emt 0:15:39]} 7. e3 {[%emt 0:00:19]} O-O {[%emt 0:00:58]} 8. Bd3 {[%emt 0:00:07]} Nbd7 {[%emt 0:01:33]} 9. O-O {[%emt 0:00:35]} c6 {[%emt 0:06:31]} 10. Qc2 {[%emt 0:00:28] LiveBook: 8 Games} h6 {[%emt 0:00:17]} 11. Bh4 {[%emt 0:08:02]} Re8 {[%emt 0:03:37]} 12. Rab1 {[%emt 0:07:07] D36: Queen's Gambit Declined: Exchange Variation: Main line (5 Bg5 c6 6 Qc2)} (12. Nd2 Nh5 13. Bxe7 Qxe7 14. Rab1 a5 15. a3 Nhf6 16. b4 axb4 17. axb4 b5 18. e4 dxe4 19. Ncxe4 Nxe4 20. Bxe4 {1-0 (74) Karjakin,S (2774)-Mamedyarov,S (2746) Almaty 2016}) 12... b6 {[%emt 0:00:42]} 13. Bg3 $146 {[%emt 0:03:01]} ({Predecessor:} 13. b4 Bb7 14. Rfc1 Ne4 15. Bxe7 Qxe7 16. a4 Rac8 17. Ne2 g5 18. Ng3 Nxg3 19. hxg3 Nf8 {0-1 (49) Kelbling,A (1956)-Bornemann,M (2173) Unna 2007}) 13... Bb7 {[%emt 0:01:10]} 14. Rfd1 {[%emt 0:08:54]} Nh5 {[%emt 0:25:55]} 15. a3 {[%emt 0:15:25]} Nxg3 {[%emt 0:00:21]} 16. hxg3 {[%emt 0:00:04]} Bd6 {[%emt 0:05:19]} 17. b4 {[%emt 0:10:21]} Nf6 {[%emt 0:02:07]} 18. a4 {[%emt 0:06:11]} Qe7 {[%emt 0:09:52]} 19. b5 {[%emt 0:05:42]} c5 {[%emt 0:02:53]} 20. dxc5 {[%emt 0:01:19]} bxc5 {[%emt 0:00:55]} 21. Bf1 {[%emt 0:05:41] [#]} Rac8 {[%emt 0:08:14]} (21... Bxg3 $1 $17 {[%mdl 512]} 22. fxg3 Qxe3+ 23. Kh1 d4) 22. Qb3 {[%emt 0:06:01]} Bc7 {[%emt 0:02:04]} (22... c4 $17 23. Qc2 {[#]} Bxg3 $1 {[%mdl 512]}) 23. Qb2 $2 {[%emt 0:08:43] [#]} (23. Nxd5 $11 Nxd5 24. Rxd5) 23... Red8 {[%emt 0:01:29]} ({Black should play} 23... Bxg3 $1 $19 {[%mdl 512]} 24. b6 (24. fxg3 Qxe3+) 24... axb6 25. fxg3 Qxe3+ 26. Kh1 d4) 24. Rbc1 $1 {[%emt 0:04:59]} Bd6 {[%emt 0:03:31]} 25. Qb3 {[%emt 0:03:49]} Bc7 {[%emt 0:00:45]} (25... c4 $15 26. Qc2 Ba3) 26. Qb2 {[%emt 0:00:45]} Ng4 {[%emt 0:01:17]} 27. Bd3 $2 {[%emt 0:01:22] [#]} (27. Ne2 $17) 27... Ne5 $2 {[%emt 0:01:56]} ({Black should try} 27... Bxg3 $1 $19 {[%mdl 512]} 28. Rd2 (28. fxg3 Qxe3+) 28... d4 29. exd4 cxd4) 28. Be2 {[%emt 0:01:37]} (28. Bf5 $15 Nxf3+ 29. gxf3) 28... d4 {[%emt 0:01:43]} 29. exd4 {[%emt 0:00:17]} Nxf3+ {[%emt 0:00:07]} 30. Bxf3 {[%emt 0:00:03]} Bxf3 {[%emt 0:00:05]} 31. gxf3 {[%emt 0:00:03]} cxd4 {[%emt 0:00:18]} 32. Ne4 {[%emt 0:00:29]} Bb6 {[%emt 0:01:27]} 33. Rxc8 {[%emt 0:00:38]} Rxc8 {[%emt 0:00:01]} 34. a5 {[%emt 0:01:15]} Bxa5 {[%emt 0:00:25]} 35. Qxd4 {[%emt 0:00:20]} Bb6 {[%emt 0:01:20]} 36. Qb2 {[%emt 0:01:14]} Kh8 {[%emt 0:00:31]} 37. Kg2 {[%emt 0:01:13]} f5 {[%emt 0:00:28]} 38. Nd6 {[%emt 0:01:03]} Rf8 {[%emt 0:00:18]} 39. Nc4 {[%emt 0:00:18]} Bc7 {[%emt 0:00:36]} 40. Qd2 {[%emt 0:00:00]} Rd8 {[%emt 0:00:00]} 41. Qc2 {[%emt 0:01:14]} Rxd1 {[%emt 0:13:07]} 42. Qxd1 {[%emt 0:00:10]} Qc5 {[%emt 0:03:10]} 43. Qb3 {[%emt 0:00:07]} f4 {[%emt 0:00:31]} 44. g4 {[%emt 0:04:34]} h5 {[%emt 0:06:46]} 45. gxh5 {[%emt 0:01:41]} Qxh5 {[%emt 0:01:06]} 46. Nd2 {[%emt 0:06:16]} Qg6+ {[%emt 0:01:55]} 47. Kf1 {[%emt 0:00:29]} Qf5 {[%emt 0:00:20]} 48. Ne4 {[%emt 0:03:05]} Kh7 {[%emt 0:00:29]} 49. Qc4 {[%emt 0:02:04]} Bb6 {[%emt 0:02:41]} 50. Qd3 {[%emt 0:01:09]} Kh6 {[%emt 0:01:27]} 51. Ke2 {[%emt 0:00:59]} Qe5 {[%emt 0:00:37]} 52. Qb1 $11 {[%emt 0:01:52]} Qd5 {[%emt 0:00:30]} 53. Kf1 {[%emt 0:04:50]} Qe5 {[%emt 0:02:12]} 54. Ke2 {[%emt 0:00:25]} Qd5 {[%emt 0:00:12]} 55. Kf1 {[%emt 0:00:15]} Qe5 {[%emt 0:00:01]} 56. Ke2 {[%emt 0:00:37]} Qd5 {[%emt 0:02:15]} 57. Kf1 {[%emt 0:01:01]} Qe5 {[%emt 0:00:38]} 58. Ke2 {[%emt 0:00:07]} Qd5 {[%emt 0:00:05]} 59. Ke1 1/2-1/2

[Event "IIFL Wealth  4th Mumbai Junior U-13"]
[Site "Mumbai"]
[Date "2019.01.01"]
[Round "3"]
[White "Vaval Aaditi"]
[Black "Krishnan Ritvik"]
[Result "1/2-1/2"]
[ECO "B22"]
[WhiteElo "1367"]
[BlackElo "1812"]
[Annotator "NA RC"]
[PlyCount "83"]
[EventDate "2018.12.30"]
[EventType "swiss"]
[EventCountry "IND"]
[SourceTitle "playchess.com"]
[Source "ChessBase"]
[SourceQuality "1"]
[TimeControl "40/5400+30:1800+30"]

{[%evp 17,83,-14,5,25,-4,7,28,32767,32767,-62,-49,32767,32767,32767,32767,32767,32767,32767,47,41,32767,32767,32767,32767,44,37,56,32767,32767,32767,32767,32767,32767,32767,10,18,14,0,32767,21,30,33,32,32767,32767,32767,26,26,21,14,20,0,23,32767,34,10,46,52,56,32767,54,20,27,31,77,82,106,95]} 1. e4 {[%emt 0:00:00]} c5 {[%emt 0:00:00]} 2. c3 {[%emt 0:00:00]} Nf6 {[%emt 0:00:00]} 3. e5 {[%emt 0:00:00]} Nd5 4. d4 {[%emt 0:00:00]} cxd4 {[%emt 0:00:00]} 5. Qxd4 {[%emt 0:00:00]} e6 {[%emt 0:01:10]} 6. Nf3 {[%emt 0:00:02]} Nc6 {[%emt 0:00:08]} 7. Qe4 {[%emt 0:00:08]} d6 {[%emt 0:03:58]} 8. exd6 {[%emt 0:02:55]} Bxd6 {[%emt 0:00:36]} 9. Bd3 {[%emt 0:04:44] B22: Sicilian: 2 c3} (9. Bc4 O-O 10. O-O Nce7 11. Rd1 Qc7 12. Nbd2 Bd7 13. Bxd5 exd5 14. Qe2 Ng6 15. h3 Nf4 16. Qf1 Bf5 {0-1 (42) Maze,S (2543)-Tregubov,P (2611) Haguenau 2013}) 9... Nf6 {[%emt 0:02:43] LiveBook: 4 Games} 10. Qe2 {[%emt 0:00:31]} h6 {[%emt 0:01:34]} 11. Nbd2 {[%emt 0:02:07]} Bc7 {[%emt 0:02:04]} 12. O-O {[%emt 0:03:03]} O-O {[%emt 0:00:34]} 13. Nc4 {[%emt 0:04:18]} (13. Ne4 $14) 13... e5 $146 {[%emt 0:03:08]} ({Predecessor:} 13... b5 14. Ne3 a6 15. Re1 Bb7 16. Nf1 Qe7 {0-1 (37) Johnsen,S (2020)-Johansson,V (2165) Stockholm 1998}) 14. Rd1 {[%emt 0:07:23]} Qe7 {[%emt 0:00:56]} 15. Nfd2 {[%emt 0:09:15]} Nd5 {[%emt 0:04:04]} ({Black should play} 15... Bg4 $11 16. f3 Be6) 16. Qe4 {[%emt 0:04:17]} Nf6 {[%emt 0:00:12]} 17. Qe2 {[%emt 0:00:38]} Bd7 {[%emt 0:07:54]} 18. b3 {[%emt 0:04:09]} Rfe8 {[%emt 0:07:31]} 19. Ne4 {[%emt 0:07:16]} Nxe4 20. Bxe4 f5 {[%emt 0:18:34]} 21. Ba3 {[%emt 0:03:06]} Qf7 $1 {[%emt 0:00:35]} 22. Bc2 {[%emt 0:06:51]} Be6 {[%emt 0:03:35]} 23. Nd6 {[%emt 0:02:35]} Bxd6 {[%emt 0:00:02]} 24. Bxd6 Qf6 {[%emt 0:01:34]} 25. Ba3 {[%emt 0:07:44]} Red8 {[%emt 0:01:47]} 26. Bb2 {[%emt 0:01:37]} e4 {[%emt 0:00:35]} 27. Rab1 {[%emt 0:04:12]} Qf7 {[%emt 0:01:54]} 28. Rxd8+ {[%emt 0:02:02]} Rxd8 {[%emt 0:00:03]} 29. Rd1 {[%emt 0:00:27]} Rxd1+ 30. Qxd1 {[%emt 0:00:29]} Qc7 {[%emt 0:03:39]} 31. h3 {[%emt 0:04:30]} Qe5 {[%emt 0:06:24]} 32. Qc1 {[%emt 0:02:14]} Qa5 {[%emt 0:01:50]} 33. Qa1 {[%emt 0:02:30]} Qd5 {[%emt 0:03:27]} 34. Qd1 {[%emt 0:02:00]} Qxd1+ {[%emt 0:01:09]} 35. Bxd1 {[%emt 0:00:01]} Kf7 {[%emt 0:00:36]} 36. Kf1 {[%emt 0:00:59]} Ke7 {[%emt 0:01:06]} 37. c4 {[%emt 0:02:22]} g6 {[%emt 0:00:24]} 38. Bc3 {[%emt 0:00:48]} Kd6 {[%emt 0:03:20]} 39. Be2 {[%emt 0:02:29]} b6 {[%emt 0:05:41]} 40. Ke1 {[%emt 0:00:21]} Kc5 {[%emt 0:01:10]} 41. Kd2 {[%emt 0:02:07]} a6 {[%emt 0:12:40]} 42. h4 $16 {[%emt 0:05:13]} 1/2-1/2

[Event "IIFL Wealth  4th Mumbai Junior U-13"]
[Site "Mumbai"]
[Date "2019.01.01"]
[Round "3"]
[White "Jadhav Jyotiraditya"]
[Black "Anirudh Satish"]
[Result "1-0"]
[ECO "D60"]
[WhiteElo "1358"]
[BlackElo "1101"]
[Annotator "NA RC"]
[PlyCount "101"]
[EventDate "2018.12.30"]
[EventType "swiss"]
[EventCountry "IND"]
[SourceTitle "playchess.com"]
[Source "ChessBase"]
[SourceQuality "1"]
[TimeControl "40/5400+30:1800+30"]

1. d4 {[%emt 0:00:00]} d5 {[%emt 0:00:00]} 2. c4 {[%emt 0:00:00]} e6 {[%emt 0:00:00]} 3. Nc3 {[%emt 0:00:00]} Nf6 {[%emt 0:00:00]} 4. Bg5 {[%emt 0:00:00]} Nbd7 {[%emt 0:00:00]} 5. Nf3 {[%emt 0:00:07]} Be7 {[%emt 0:00:07]} 6. e3 {[%emt 0:00:09]} O-O {[%emt 0:00:13]} 7. cxd5 {[%emt 0:00:07]} exd5 {[%emt 0:00:14]} 8. Bd3 {[%emt 0:00:08]} Nb6 {[%emt 0:00:13]} 9. O-O {[%emt 0:00:49]} Bg4 {[%emt 0:00:47]} 10. h3 {[%emt 0:00:23]} Bh5 {[%emt 0:00:25]} 11. Re1 {[%emt 0:05:05]} Ne4 {[%emt 0:00:38]} 12. Bxe7 {[%emt 0:02:00]} Nxc3 {[%emt 0:01:03]} 13. bxc3 {[%emt 0:02:27]} Qxe7 {[%emt 0:00:19]} 14. Be2 {[%emt 0:07:06]} Qa3 {[%emt 0:00:39]} 15. Qc2 {[%emt 0:02:26]} Bg6 {[%emt 0:00:21]} 16. Bd3 {[%emt 0:00:10]} Bxd3 {[%emt 0:01:28]} 17. Qxd3 {[%emt 0:00:12]} h6 {[%emt 0:00:10]} 18. Reb1 {[%emt 0:03:18]} c6 {[%emt 0:00:26]} 19. Rb3 {[%emt 0:01:31]} Qd6 {[%emt 0:00:44]} 20. a4 {[%emt 0:03:21]} Qc7 {[%emt 0:00:40]} 21. Nd2 {[%emt 0:02:41]} Rab8 {[%emt 0:00:34]} 22. c4 {[%emt 0:06:54]} dxc4 {[%emt 0:00:28]} 23. Nxc4 {[%emt 0:00:09]} Nxc4 {[%emt 0:00:14]} 24. Qxc4 {[%emt 0:00:05]} Rfd8 {[%emt 0:00:27]} 25. Rc3 {[%emt 0:01:48]} Qe7 {[%emt 0:00:57]} 26. Re1 {[%emt 0:05:28]} Rbc8 {[%emt 0:00:41]} 27. f3 {[%emt 0:06:22]} Rc7 {[%emt 0:00:19]} 28. e4 {[%emt 0:02:46]} Rcd7 {[%emt 0:00:36]} 29. Rd1 {[%emt 0:02:25]} Qf6 {[%emt 0:00:56]} 30. Rcd3 {[%emt 0:00:12]} Qe6 {[%emt 0:01:52]} 31. d5 {[%emt 0:02:20]} Qg6 {[%emt 0:01:19]} 32. dxc6 {[%emt 0:09:39]} Rxd3 {[%emt 0:00:30]} 33. Rxd3 {[%emt 0:00:04]} Rxd3 {[%emt 0:00:14]} 34. c7 {[%emt 0:00:45]} Qb6+ {[%emt 0:00:58]} 35. Kh2 {[%emt 0:00:49]} Rd8 {[%emt 0:00:25]} 36. cxd8=Q+ {[%emt 0:05:11]} Qxd8 {[%emt 0:00:20]} 37. e5 {[%emt 0:00:50]} Qe7 {[%emt 0:00:43]} 38. Qd4 {[%emt 0:01:00]} a6 {[%emt 0:00:22]} 39. f4 {[%emt 0:02:43]} Kh7 {[%emt 0:00:17]} 40. f5 {[%emt 0:00:00]} b5 {[%emt 0:00:00]} 41. axb5 {[%emt 0:01:31]} axb5 {[%emt 0:00:50]} 42. Qd6 {[%emt 0:01:01]} Qe8 {[%emt 0:01:33]} 43. e6 {[%emt 0:00:54]} fxe6 {[%emt 0:00:22]} 44. fxe6 {[%emt 0:00:05]} b4 {[%emt 0:00:09]} 45. e7 {[%emt 0:03:11]} b3 {[%emt 0:00:09]} 46. Qd8 {[%emt 0:00:53]} b2 {[%emt 0:00:26]} 47. Qxe8 b1=Q {[%emt 0:00:11]} 48. Qf8 {[%emt 0:00:58]} Qb7 {[%emt 0:00:21]} 49. Qf5+ {[%emt 0:00:42]} g6 {[%emt 0:00:22]} 50. Qf7+ {[%emt 0:00:06]} Kh8 {[%emt 0:00:08]} 51. e8=Q# {[%emt 0:00:27]} 1-0

[Event "IIFL Wealth  4th Mumbai Junior U-13"]
[Site "Mumbai"]
[Date "2019.01.01"]
[Round "3"]
[White "Khairmode Aditya"]
[Black "Aaryan Balaji Rao"]
[Result "1-0"]
[ECO "B35"]
[WhiteElo "1337"]
[BlackElo "1095"]
[Annotator "NA RC"]
[PlyCount "47"]
[EventDate "2018.12.30"]
[EventType "swiss"]
[EventCountry "IND"]
[SourceTitle "playchess.com"]
[Source "ChessBase"]
[SourceQuality "1"]
[TimeControl "40/5400+30:1800+30"]

1. e4 {[%emt 0:00:00]} c5 {[%emt 0:00:00]} 2. Nf3 {[%emt 0:00:00]} g6 {[%emt 0:00:00]} 3. d4 {[%emt 0:00:05]} cxd4 {[%emt 0:00:00]} 4. Nxd4 {[%emt 0:00:11]} Nc6 {[%emt 0:00:00]} 5. Be3 {[%emt 0:00:56]} Bg7 {[%emt 0:00:01]} 6. Bc4 {[%emt 0:01:10]} Nf6 {[%emt 0:00:08]} 7. Nc3 {[%emt 0:00:12]} O-O {[%emt 0:00:07]} 8. f3 {[%emt 0:00:11]} Qb6 {[%emt 0:00:43]} 9. Bb3 {[%emt 0:13:03]} Nxe4 {[%emt 0:00:26]} 10. fxe4 {[%emt 0:15:32]} Bxd4 {[%emt 0:00:08]} 11. Bxd4 {[%emt 0:04:54]} Nxd4 {[%emt 0:00:13]} 12. Nd5 {[%emt 0:02:49]} Qa5+ {[%emt 0:00:51]} 13. c3 {[%emt 0:00:31]} Nxb3 {[%emt 0:00:36]} 14. axb3 {[%emt 0:05:58]} Qc5 {[%emt 0:00:42]} 15. Qd2 {[%emt 0:03:24]} Qd6 {[%emt 0:02:59]} 16. O-O-O {[%emt 0:02:38]} Qe5 {[%emt 0:00:30]} 17. Qd4 {[%emt 0:05:51]} Qf4+ {[%emt 0:03:16]} 18. Nxf4 {[%emt 0:00:30]} d6 {[%emt 0:00:11]} 19. Nd5 {[%emt 0:00:56]} e5 {[%emt 0:00:07]} 20. Nf6+ {[%emt 0:01:06]} Kh8 {[%emt 0:00:07]} 21. Qxd6 {[%emt 0:00:09]} Be6 {[%emt 0:00:08]} 22. Qxe5 {[%emt 0:00:17]} b6 {[%emt 0:00:11]} 23. Nh5+ {[%emt 0:00:59]} Kg8 {[%emt 0:00:09]} 24. Qg7# {[%emt 0:00:06]} 1-0

[Event "IIFL Wealth  4th Mumbai Junior U-13"]
[Site "Mumbai"]
[Date "2019.01.01"]
[Round "3"]
[White "Aggarwal Vansh"]
[Black "Vedant Mistry"]
[Result "1-0"]
[ECO "C68"]
[WhiteElo "1328"]
[BlackElo "1075"]
[Annotator "NA RC"]
[PlyCount "45"]
[EventDate "2018.12.30"]
[EventType "swiss"]
[EventCountry "IND"]
[SourceTitle "playchess.com"]
[Source "ChessBase"]
[SourceQuality "1"]
[TimeControl "40/5400+30:1800+30"]

1. e4 {[%emt 0:00:00]} e5 {[%emt 0:00:00]} 2. Nf3 {[%emt 0:00:00]} Nc6 {[%emt 0:00:00]} 3. Bb5 {[%emt 0:00:14]} a6 {[%emt 0:00:00]} 4. Bxc6 {[%emt 0:00:29]} dxc6 {[%emt 0:00:00]} 5. O-O {[%emt 0:00:35]} f6 {[%emt 0:02:58]} 6. d4 {[%emt 0:02:18]} exd4 {[%emt 0:00:51]} 7. Nxd4 {[%emt 0:00:23]} c5 {[%emt 0:02:47]} 8. Nb3 {[%emt 0:01:55]} Qxd1 {[%emt 0:04:50]} 9. Rxd1 {[%emt 0:00:02]} Bd7 {[%emt 0:01:07]} 10. Bf4 {[%emt 0:02:48]} O-O-O {[%emt 0:01:36]} 11. Nc3 {[%emt 0:02:41]} f5 {[%emt 0:10:16]} 12. Nd5 {[%emt 0:11:28]} fxe4 {[%emt 0:04:12]} 13. Bxc7 {[%emt 0:06:57]} Re8 {[%emt 0:00:47]} 14. Bg3 {[%emt 0:05:39]} Re6 {[%emt 0:02:32]} 15. Rd2 {[%emt 0:08:06]} Nf6 {[%emt 0:01:09]} 16. Rad1 {[%emt 0:02:40]} Nxd5 {[%emt 0:04:54]} 17. Rxd5 {[%emt 0:02:10]} Re7 {[%emt 0:01:23]} 18. Nxc5 {[%emt 0:00:46]} b6 {[%emt 0:01:39]} 19. Nxd7 {[%emt 0:00:20]} Kb7 {[%emt 0:00:24]} 20. Ne5 {[%emt 0:00:43]} Rc7 {[%emt 0:01:18]} 21. Rd7 {[%emt 0:00:19]} Bc5 {[%emt 0:00:11]} 22. Rxc7+ {[%emt 0:00:08]} Kxc7 {[%emt 0:00:11]} 23. Nf7+ {[%emt 0:00:04]} 1-0